[Event "European Online Club-ch-D 2021"]
[Site "Online"]
[Date "2021.03.27"]
[Round "3.18"]
[White "Nandhidhaa, P V"]
[Black "Vymazal, Bronislav"]
[Result "0-1"]
[ECO "B30"]
[WhiteElo "2365"]
[BlackElo "2350"]
[Annotator "NA"]
[PlyCount "94"]
[EventDate "2021.03.27"]
[EventType "team-tourn"]
[EventCountry "NET"]
[SourceTitle "playchess.com"]
[Source "ChessBase"]
[SourceQuality "1"]
[TimeControl "900+5"]

1. e4 {[%emt 0:00:00]} c5 {[%emt 0:00:12]} 2. Nf3 {[%emt 0:00:09]} Nc6 {[%emt 0:00:02]} 3. Bb5 {[%emt 0:00:04]} Qb6 {[%emt 0:00:03]} 4. Nc3 {[%emt 0:00:31]} e6 {[%emt 0:00:02]} 5. O-O {[%emt 0:00:12]} Nge7 {[%emt 0:00:03]} 6. Re1 {[%emt 0:00:17]} a6 {[%emt 0:01:14]} 7. Bf1 {[%emt 0:00:05]} Ng6 {[%emt 0:00:54]} 8. b3 {[%emt 0:02:29]} Bd6 {[%emt 0:00:30]} 9. Bb2 {[%emt 0:00:30]} Qc7 {[%emt 0:00:04]} 10. Ne2 {[%emt 0:03:00]} O-O {[%emt 0:04:34]} 11. d4 {[%emt 0:00:32]} cxd4 {[%emt 0:00:47]} 12. Nexd4 {[%emt 0:00:04]} b5 {[%emt 0:00:52]} 13. Bxb5 {[%emt 0:01:10]} Nxd4 {[%emt 0:00:04]} 14. Qxd4 {[%emt 0:00:11]} e5 {[%emt 0:00:05]} 15. Qa4 {[%emt 0:00:49]} axb5 {[%emt 0:00:32]} 16. Qxa8 {[%emt 0:00:13]} Bb7 {[%emt 0:00:12]} 17. Qxf8+ {[%emt 0:00:35]} Kxf8 {[%emt 0:00:11]} 18. c4 {[%emt 0:00:10]} bxc4 {[%emt 0:00:57]} 19. Rec1 {[%emt 0:00:14]} Bxe4 {[%emt 0:00:23]} 20. Rxc4 {[%emt 0:00:02]} Qb7 {[%emt 0:00:02]} 21. Rd1 {[%emt 0:00:14]} Bxf3 {[%emt 0:00:34]} 22. Rxd6 {[%emt 0:00:05]} Bc6 {[%emt 0:01:07]} 23. Ba3 {[%emt 0:00:13]} Ke8 {[%emt 0:00:49]} 24. Bc5 {[%emt 0:00:27]} f6 {[%emt 0:00:51]} 25. f3 {[%emt 0:00:12]} Nf4 {[%emt 0:00:07]} 26. h4 {[%emt 0:01:07]} h5 {[%emt 0:00:14]} 27. Kf2 {[%emt 0:00:37]} Ne6 {[%emt 0:00:05]} 28. Be3 {[%emt 0:00:05]} Ke7 {[%emt 0:00:08]} 29. Rd2 {[%emt 0:00:14]} d5 {[%emt 0:00:03]} 30. Bc5+ {[%emt 0:00:24]} Kf7 {[%emt 0:00:28]} 31. Rb4 {[%emt 0:00:10]} Qa8 {[%emt 0:00:43]} 32. Bd6 {[%emt 0:00:28]} Qa7+ {[%emt 0:00:12]} 33. Kg3 {[%emt 0:00:19]} Nf4 {[%emt 0:00:21]} 34. Rc2 {[%emt 0:00:29]} Qg1 {[%emt 0:00:03]} 35. Bc5 {[%emt 0:00:37]} d4 {[%emt 0:00:09]} 36. Bxd4 {[%emt 0:00:12]} Qe1+ {[%emt 0:00:02]} 37. Bf2 {[%emt 0:00:07]} Qxb4 {[%emt 0:00:02]} 38. Rxc6 {[%emt 0:00:01]} Ne2+ {[%emt 0:00:11]} 39. Kh2 {[%emt 0:00:07]} Qf4+ {[%emt 0:00:03]} 40. Kh3 {[%emt 0:00:19]} e4 {[%emt 0:00:04]} 41. Rc4 {[%emt 0:00:24]} f5 {[%emt 0:00:09]} 42. Ra4 {[%emt 0:00:16]} Qd2 {[%emt 0:00:04]} 43. fxe4 {[%emt 0:00:02]} Nc3 {[%emt 0:00:10]} 44. Ra7+ {[%emt 0:00:02]} Kg8 {[%emt 0:00:03]} 45. Bg3 {[%emt 0:00:02]} Nxe4 {[%emt 0:00:03]} 46. Be5 {[%emt 0:00:01]} Qe3+ {[%emt 0:00:07]} 47. g3 {[%emt 0:00:02]} Qxa7 {[%emt 0:00:02]} 0-1

[Event "European Online Club-ch-D 2021"]
[Site "Online"]
[Date "2021.03.27"]
[Round "3.19"]
[White "Kusa, Jakub"]
[Black "Dauletova, Gulmira"]
[Result "1-0"]
[ECO "C84"]
[WhiteElo "2336"]
[BlackElo "2285"]
[Annotator "NA"]
[PlyCount "91"]
[EventDate "2021.03.27"]
[EventType "team-tourn"]
[EventCountry "NET"]
[SourceTitle "playchess.com"]
[Source "ChessBase"]
[SourceQuality "1"]
[TimeControl "900+5"]

1. e4 {[%emt 0:00:00]} e5 {[%emt 0:00:03]} 2. Nf3 {[%emt 0:00:06]} Nc6 {[%emt 0:00:02]} 3. Bb5 {[%emt 0:00:04]} a6 {[%emt 0:00:03]} 4. Ba4 {[%emt 0:00:03]} Nf6 {[%emt 0:00:03]} 5. O-O {[%emt 0:00:04]} Be7 {[%emt 0:00:03]} 6. d3 {[%emt 0:00:03]} b5 {[%emt 0:00:03]} 7. Bb3 {[%emt 0:00:04]} d6 {[%emt 0:00:12]} 8. a3 {[%emt 0:00:57]} O-O {[%emt 0:00:13]} 9. Nc3 {[%emt 0:00:05]} Bg4 {[%emt 0:00:30]} 10. Be3 {[%emt 0:00:05]} Nd4 {[%emt 0:02:28]} 11. Bxd4 {[%emt 0:00:04]} exd4 {[%emt 0:00:01]} 12. Nd5 {[%emt 0:00:02]} c5 {[%emt 0:00:07]} 13. h3 {[%emt 0:00:23]} Be6 {[%emt 0:00:02]} 14. Nxf6+ {[%emt 0:01:00]} Bxf6 {[%emt 0:00:02]} 15. Bxe6 {[%emt 0:00:43]} fxe6 {[%emt 0:00:02]} 16. a4 {[%emt 0:00:47]} Qb6 {[%emt 0:00:26]} 17. axb5 {[%emt 0:01:07]} axb5 {[%emt 0:00:06]} 18. Qd2 {[%emt 0:00:51]} h6 {[%emt 0:02:52]} 19. Qe2 {[%emt 0:01:08]} Qc7 {[%emt 0:00:36]} 20. Rfe1 {[%emt 0:03:27]} e5 {[%emt 0:04:32]} 21. c3 {[%emt 0:00:49]} dxc3 {[%emt 0:01:39]} 22. bxc3 {[%emt 0:00:03]} Ra5 {[%emt 0:00:02]} 23. Rxa5 {[%emt 0:02:16]} Qxa5 {[%emt 0:00:02]} 24. Qb2 {[%emt 0:00:04]} b4 {[%emt 0:00:39]} 25. Ra1 {[%emt 0:00:23]} Qb6 {[%emt 0:00:02]} 26. Qb3+ {[%emt 0:00:42]} Kh7 {[%emt 0:00:02]} 27. Nd2 {[%emt 0:00:03]} Rb8 {[%emt 0:00:10]} 28. Nc4 {[%emt 0:00:10]} Qc7 {[%emt 0:00:17]} 29. Ne3 {[%emt 0:00:26]} Bg5 {[%emt 0:00:10]} 30. Nd5 {[%emt 0:00:18]} Qb7 {[%emt 0:00:05]} 31. Rb1 {[%emt 0:00:07]} Qf7 {[%emt 0:00:30]} 32. cxb4 {[%emt 0:00:16]} cxb4 {[%emt 0:00:44]} 33. Qc4 {[%emt 0:00:12]} Bd2 {[%emt 0:00:18]} 34. Qc2 {[%emt 0:00:18]} Bg5 {[%emt 0:00:02]} 35. Rxb4 {[%emt 0:00:07]} Rxb4 {[%emt 0:00:15]} 36. Nxb4 {[%emt 0:00:01]} Bd8 {[%emt 0:00:11]} 37. Nd5 {[%emt 0:00:03]} Ba5 {[%emt 0:00:05]} 38. Qc8 {[%emt 0:00:06]} Be1 {[%emt 0:00:06]} 39. Qc2 {[%emt 0:00:08]} Qa7 {[%emt 0:00:15]} 40. Qe2 {[%emt 0:00:08]} Qa1 {[%emt 0:00:02]} 41. Kh2 {[%emt 0:00:06]} Bc3 {[%emt 0:00:03]} 42. Qf3 {[%emt 0:00:05]} Bd4 {[%emt 0:00:10]} 43. Qf5+ {[%emt 0:00:02]} Kh8 {[%emt 0:00:04]} 44. Qf8+ {[%emt 0:00:05]} Kh7 {[%emt 0:00:01]} 45. Ne7 {[%emt 0:00:04]} h5 {[%emt 0:00:13]} 46. Qf5+ {[%emt 0:00:02]} 1-0

[Event "European Online Club-ch-D 2021"]
[Site "Online"]
[Date "2021.03.27"]
[Round "3.20"]
[White "Muminova, Nafisa"]
[Black "Zeman, Matyas"]
[Result "1/2-1/2"]
[ECO "D00"]
[WhiteElo "2274"]
[BlackElo "2261"]
[Annotator "NA"]
[PlyCount "63"]
[EventDate "2021.03.27"]
[EventType "team-tourn"]
[EventCountry "NET"]
[SourceTitle "playchess.com"]
[Source "ChessBase"]
[SourceQuality "1"]
[TimeControl "900+5"]

1. d4 {[%emt 0:00:00]} e6 {[%emt 0:00:06]} 2. Nc3 {[%emt 0:00:03]} d5 {[%emt 0:00:06]} 3. Bf4 {[%emt 0:00:03]} Nf6 {[%emt 0:00:11]} 4. Nb5 {[%emt 0:00:09]} Na6 {[%emt 0:00:04]} 5. e3 {[%emt 0:00:02]} c6 {[%emt 0:00:03]} 6. Nc3 {[%emt 0:00:02]} b6 {[%emt 0:00:22]} 7. g4 {[%emt 0:01:17]} h6 {[%emt 0:00:32]} 8. Bg2 {[%emt 0:00:14]} Bd6 {[%emt 0:00:04]} 9. Qf3 {[%emt 0:00:17]} Qe7 {[%emt 0:00:56]} 10. Nge2 {[%emt 0:00:10]} Nc7 {[%emt 0:00:27]} 11. Qg3 {[%emt 0:00:14]} Bxf4 {[%emt 0:00:04]} 12. exf4 {[%emt 0:00:06]} Qd6 {[%emt 0:02:04]} 13. h4 {[%emt 0:00:20]} Bd7 {[%emt 0:00:43]} 14. O-O-O {[%emt 0:00:48]} O-O-O {[%emt 0:00:11]} 15. g5 {[%emt 0:00:22]} Nh5 {[%emt 0:00:16]} 16. Qe3 {[%emt 0:00:03]} g6 {[%emt 0:00:26]} 17. Bf3 {[%emt 0:00:07]} Ng7 {[%emt 0:00:03]} 18. Ng3 {[%emt 0:00:13]} h5 {[%emt 0:01:30]} 19. Qe5 {[%emt 0:00:04]} Qxe5 {[%emt 0:00:20]} 20. fxe5 {[%emt 0:00:03]} Kb7 {[%emt 0:02:46]} 21. Be2 {[%emt 0:00:15]} Nb5 {[%emt 0:00:27]} 22. Bxb5 {[%emt 0:00:23]} cxb5 {[%emt 0:00:00]} 23. b4 {[%emt 0:00:06]} Rc8 {[%emt 0:00:20]} 24. Nce2 {[%emt 0:00:07]} Rc4 {[%emt 0:00:19]} 25. c3 {[%emt 0:00:04]} Rhc8 {[%emt 0:00:02]} 26. Kb2 {[%emt 0:00:02]} a5 {[%emt 0:00:20]} 27. a3 {[%emt 0:00:03]} a4 {[%emt 0:00:18]} 28. Rd3 {[%emt 0:00:15]} R4c7 {[%emt 0:00:23]} 29. Rhd1 {[%emt 0:00:15]} Nf5 {[%emt 0:00:06]} 30. Nxf5 {[%emt 0:00:02]} exf5 {[%emt 0:00:00]} 31. f4 {[%emt 0:00:05]} Be6 {[%emt 0:00:02]} 32. Re3 {[%emt 0:00:09]} 1/2-1/2

[Event "European Online Club-ch-D 2021"]
[Site "Online"]
[Date "2021.03.27"]
[Round "4.1"]
[White "Eren, Ataberk"]
[Black "Tokhirjonova, Gulrukhbegim"]
[Result "1/2-1/2"]
[ECO "D02"]
[WhiteElo "2306"]
[BlackElo "2362"]
[Annotator "NA"]
[PlyCount "144"]
[EventDate "2021.03.27"]
[EventType "team-tourn"]
[EventCountry "NET"]
[SourceTitle "playchess.com"]
[Source "ChessBase"]
[SourceQuality "1"]
[TimeControl "900+5"]

1. d4 {[%emt 0:00:00]} e6 {[%emt 0:00:04]} 2. Bf4 {[%emt 0:00:22]} d5 {[%emt 0:00:05]} 3. e3 {[%emt 0:00:02]} c5 {[%emt 0:00:10]} 4. c3 {[%emt 0:00:02]} Nc6 {[%emt 0:00:02]} 5. Nd2 {[%emt 0:00:01]} Bd6 {[%emt 0:00:03]} 6. Bg3 {[%emt 0:00:03]} Nf6 {[%emt 0:00:04]} 7. Ngf3 {[%emt 0:00:02]} Bxg3 {[%emt 0:00:21]} 8. hxg3 {[%emt 0:00:01]} Qd6 {[%emt 0:00:02]} 9. Bb5 {[%emt 0:00:05]} Bd7 {[%emt 0:00:01]} 10. Bxc6 {[%emt 0:00:06]} Bxc6 {[%emt 0:00:03]} 11. Ne5 {[%emt 0:00:02]} Nd7 {[%emt 0:00:18]} 12. Ndf3 {[%emt 0:00:06]} h6 {[%emt 0:01:16]} 13. g4 {[%emt 0:00:19]} Rf8 {[%emt 0:00:06]} 14. Qc2 {[%emt 0:00:11]} Nxe5 {[%emt 0:01:17]} 15. Nxe5 {[%emt 0:00:03]} O-O-O {[%emt 0:00:05]} 16. Qh7 {[%emt 0:00:45]} cxd4 {[%emt 0:00:36]} 17. exd4 {[%emt 0:00:06]} f6 {[%emt 0:02:16]} 18. Nxc6 {[%emt 0:00:23]} Qxc6 {[%emt 0:00:28]} 19. Qxg7 {[%emt 0:00:12]} Rg8 {[%emt 0:00:02]} 20. Qxf6 {[%emt 0:00:30]} Rxg4 {[%emt 0:00:02]} 21. O-O-O {[%emt 0:00:56]} Rxg2 {[%emt 0:00:16]} 22. Rxh6 {[%emt 0:00:05]} Re8 {[%emt 0:00:05]} 23. Re1 {[%emt 0:00:19]} Qa4 {[%emt 0:00:57]} 24. Rh7 {[%emt 0:00:31]} Qxa2 {[%emt 0:02:08]} 25. Qf7 {[%emt 0:03:25]} Qa1+ {[%emt 0:00:03]} 26. Kc2 {[%emt 0:00:06]} Qa4+ {[%emt 0:00:06]} 27. Kd2 {[%emt 0:00:09]} Qc6 {[%emt 0:00:08]} 28. Ra1 {[%emt 0:00:56]} a6 {[%emt 0:00:26]} 29. Ra5 {[%emt 0:00:06]} b5 {[%emt 0:02:28]} 30. Kc1 {[%emt 0:02:54]} Rg1+ {[%emt 0:00:26]} 31. Kc2 {[%emt 0:00:22]} Rf1 {[%emt 0:00:43]} 32. Kd2 {[%emt 0:01:38]} Rd8 {[%emt 0:01:40]} 33. Ke2 {[%emt 0:02:15]} Qc4+ {[%emt 0:00:09]} 34. Ke3 {[%emt 0:00:11]} Re1+ {[%emt 0:00:11]} 35. Kf4 {[%emt 0:00:01]} e5+ {[%emt 0:00:17]} 36. Kg5 {[%emt 0:00:27]} Rg1+ {[%emt 0:00:08]} 37. Kf6 {[%emt 0:00:08]} Qc6+ {[%emt 0:00:12]} 38. Qe6+ {[%emt 0:00:08]} Qxe6+ {[%emt 0:00:06]} 39. Kxe6 {[%emt 0:00:01]} exd4 {[%emt 0:00:01]} 40. cxd4 {[%emt 0:00:06]} Rg6+ {[%emt 0:00:13]} 41. Ke5 {[%emt 0:00:01]} Re8+ {[%emt 0:00:14]} 42. Kxd5 {[%emt 0:00:11]} Rg5+ {[%emt 0:00:01]} 43. Kd6 {[%emt 0:00:01]} Rg6+ {[%emt 0:00:03]} 44. Kc5 {[%emt 0:00:01]} Rf8 {[%emt 0:00:06]} 45. Ra1 {[%emt 0:00:11]} Rxf2 {[%emt 0:00:02]} 46. Re1 {[%emt 0:00:03]} Rc2+ {[%emt 0:00:02]} 47. Kd5 {[%emt 0:00:01]} Rc7 {[%emt 0:00:02]} 48. Re8+ {[%emt 0:00:04]} Kb7 {[%emt 0:00:02]} 49. Rxc7+ {[%emt 0:00:02]} Kxc7 {[%emt 0:00:01]} 50. Re7+ {[%emt 0:00:01]} Kc8 {[%emt 0:00:13]} 51. Re6 {[%emt 0:00:04]} Rg2 {[%emt 0:00:04]} 52. b4 {[%emt 0:00:12]} Kb7 {[%emt 0:00:06]} 53. Re7+ {[%emt 0:00:01]} Kb6 {[%emt 0:00:02]} 54. Re6+ {[%emt 0:00:01]} Kb7 {[%emt 0:00:02]} 55. Re7+ {[%emt 0:00:06]} Kb6 {[%emt 0:00:01]} 56. Ke6 {[%emt 0:00:11]} a5 {[%emt 0:00:08]} 57. bxa5+ {[%emt 0:00:04]} Kxa5 {[%emt 0:00:01]} 58. d5 {[%emt 0:00:00]} b4 {[%emt 0:00:08]} 59. d6 {[%emt 0:00:02]} Re2+ {[%emt 0:00:16]} 60. Kd5 {[%emt 0:00:02]} Rd2+ {[%emt 0:00:03]} 61. Kc5 {[%emt 0:00:04]} Rc2+ {[%emt 0:00:01]} 62. Kd5 {[%emt 0:00:01]} Rd2+ {[%emt 0:00:01]} 63. Kc6 {[%emt 0:00:01]} Rc2+ {[%emt 0:00:01]} 64. Kb7 {[%emt 0:00:04]} b3 {[%emt 0:00:08]} 65. Re5+ {[%emt 0:00:08]} Ka4 {[%emt 0:00:10]} 66. Re4+ {[%emt 0:00:24]} Ka3 {[%emt 0:00:08]} 67. Re3 {[%emt 0:00:03]} Ka2 {[%emt 0:00:05]} 68. d7 {[%emt 0:00:20]} b2 {[%emt 0:00:07]} 69. Re1 {[%emt 0:00:04]} Rd2 {[%emt 0:00:05]} 70. Kc7 {[%emt 0:00:04]} Rxd7+ {[%emt 0:00:05]} 71. Kxd7 {[%emt 0:00:02]} b1=Q {[%emt 0:00:02]} 72. Rxb1 {[%emt 0:00:01]} Kxb1 {[%emt 0:00:02]} 1/2-1/2

[Event "European Online Club-ch-D 2021"]
[Site "Online"]
[Date "2021.03.27"]
[Round "4.2"]
[White "Nandhidhaa, P V"]
[Black "Erdogan, Anil Berk"]
[Result "1-0"]
[ECO "A01"]
[WhiteElo "2365"]
[BlackElo "2155"]
[Annotator "NA"]
[PlyCount "59"]
[EventDate "2021.03.27"]
[EventType "team-tourn"]
[EventCountry "NET"]
[SourceTitle "playchess.com"]
[Source "ChessBase"]
[SourceQuality "1"]
[TimeControl "900+5"]

1. b3 {[%emt 0:00:00]} e5 {[%emt 0:00:05]} 2. Bb2 {[%emt 0:00:02]} Nc6 {[%emt 0:00:01]} 3. Nf3 {[%emt 0:00:02]} e4 {[%emt 0:00:10]} 4. Nd4 {[%emt 0:00:06]} Nf6 {[%emt 0:00:35]} 5. c4 {[%emt 0:00:10]} Bc5 {[%emt 0:00:26]} 6. Nf5 {[%emt 0:00:09]} O-O {[%emt 0:00:53]} 7. e3 {[%emt 0:00:08]} d5 {[%emt 0:00:26]} 8. cxd5 {[%emt 0:00:04]} Qxd5 {[%emt 0:01:05]} 9. Ng3 {[%emt 0:00:14]} Bg4 {[%emt 0:01:19]} 10. Nc3 {[%emt 0:00:11]} Qe6 {[%emt 0:01:14]} 11. Qb1 {[%emt 0:00:57]} Rfe8 {[%emt 0:00:38]} 12. Bc4 {[%emt 0:01:24]} Qe7 {[%emt 0:01:54]} 13. Nd5 {[%emt 0:00:24]} Nxd5 {[%emt 0:00:25]} 14. Bxd5 {[%emt 0:00:02]} Rad8 {[%emt 0:03:21]} 15. Bxe4 {[%emt 0:00:34]} f5 {[%emt 0:00:49]} 16. Bxf5 {[%emt 0:00:24]} Rxd2 {[%emt 0:01:37]} 17. O-O {[%emt 0:00:48]} Bxf5 {[%emt 0:00:26]} 18. Nxf5 {[%emt 0:00:27]} Qg5 {[%emt 0:00:08]} 19. Bc3 {[%emt 0:01:02]} Ne5 {[%emt 0:00:34]} 20. Bxd2 {[%emt 0:02:05]} Nf3+ {[%emt 0:00:05]} 21. Kh1 {[%emt 0:00:02]} Nxd2 {[%emt 0:00:01]} 22. Qc2 {[%emt 0:00:36]} Ne4 {[%emt 0:00:26]} 23. Ng3 {[%emt 0:00:39]} Nxg3+ {[%emt 0:00:06]} 24. hxg3 {[%emt 0:00:03]} Bd6 {[%emt 0:00:09]} 25. Qc4+ {[%emt 0:00:32]} Kh8 {[%emt 0:00:02]} 26. Qh4 {[%emt 0:00:05]} Qe5 {[%emt 0:00:07]} 27. Rad1 {[%emt 0:00:57]} Re6 {[%emt 0:00:06]} 28. Kg1 {[%emt 0:00:06]} b6 {[%emt 0:00:06]} 29. Rd5 {[%emt 0:00:36]} Qc3 {[%emt 0:00:06]} 30. Qd8+ {[%emt 0:00:05]} 1-0

[Event "European Online Club-ch-D 2021"]
[Site "Online"]
[Date "2021.03.27"]
[Round "4.3"]
[White "Ozkan, Ervin"]
[Black "Dauletova, Gulmira"]
[Result "0-1"]
[ECO "D02"]
[WhiteElo "2147"]
[BlackElo "2285"]
[Annotator "NA"]
[PlyCount "148"]
[EventDate "2021.03.27"]
[EventType "team-tourn"]
[EventCountry "NET"]
[SourceTitle "playchess.com"]
[Source "ChessBase"]
[SourceQuality "1"]
[TimeControl "900+5"]

1. d4 {[%emt 0:00:00]} Nf6 {[%emt 0:00:03]} 2. Nf3 {[%emt 0:00:03]} d5 {[%emt 0:00:03]} 3. Bf4 {[%emt 0:00:02]} e6 {[%emt 0:00:06]} 4. e3 {[%emt 0:00:02]} Bd6 {[%emt 0:00:03]} 5. Bg3 {[%emt 0:00:02]} c5 {[%emt 0:00:07]} 6. c3 {[%emt 0:00:02]} O-O {[%emt 0:00:27]} 7. Nbd2 {[%emt 0:00:04]} Qc7 {[%emt 0:00:07]} 8. Bd3 {[%emt 0:03:47]} Nbd7 {[%emt 0:00:17]} 9. Bh4 {[%emt 0:00:04]} e5 {[%emt 0:01:33]} 10. dxe5 {[%emt 0:00:10]} Bxe5 {[%emt 0:00:46]} 11. Nxe5 {[%emt 0:00:58]} Nxe5 {[%emt 0:01:01]} 12. Bc2 {[%emt 0:00:05]} Qc6 {[%emt 0:02:24]} 13. O-O {[%emt 0:00:25]} Bg4 {[%emt 0:01:29]} 14. f3 {[%emt 0:02:26]} Bh5 {[%emt 0:00:06]} 15. Bxf6 {[%emt 0:00:37]} Qxf6 {[%emt 0:00:04]} 16. Nb3 {[%emt 0:00:18]} Qc6 {[%emt 0:01:57]} 17. Qe1 {[%emt 0:01:59]} Nc4 {[%emt 0:01:04]} 18. Qf2 {[%emt 0:00:36]} Bg6 {[%emt 0:00:39]} 19. Bxg6 {[%emt 0:00:08]} hxg6 {[%emt 0:00:01]} 20. Rfe1 {[%emt 0:00:13]} Rfe8 {[%emt 0:00:05]} 21. Rab1 {[%emt 0:00:03]} b6 {[%emt 0:00:11]} 22. Nd2 {[%emt 0:00:15]} Nd6 {[%emt 0:00:32]} 23. Rbc1 {[%emt 0:00:29]} b5 {[%emt 0:00:17]} 24. Nf1 {[%emt 0:01:20]} Re6 {[%emt 0:00:10]} 25. Rcd1 {[%emt 0:00:07]} Rae8 {[%emt 0:00:23]} 26. Rd2 {[%emt 0:00:33]} Nc4 {[%emt 0:00:03]} 27. Rde2 {[%emt 0:00:09]} f5 {[%emt 0:01:00]} 28. b3 {[%emt 0:00:14]} Ne5 {[%emt 0:00:30]} 29. Rd1 {[%emt 0:00:07]} Nd7 {[%emt 0:00:03]} 30. Red2 {[%emt 0:00:06]} Nf6 {[%emt 0:00:02]} 31. b4 {[%emt 0:00:14]} Rc8 {[%emt 0:00:15]} 32. Rd3 {[%emt 0:00:25]} a5 {[%emt 0:00:03]} 33. a3 {[%emt 0:00:02]} axb4 {[%emt 0:00:08]} 34. axb4 {[%emt 0:00:03]} Ra8 {[%emt 0:00:06]} 35. R3d2 {[%emt 0:00:06]} Ra3 {[%emt 0:00:05]} 36. Rc2 {[%emt 0:00:55]} Re8 {[%emt 0:00:21]} 37. Rdc1 {[%emt 0:00:17]} Qd6 {[%emt 0:00:04]} 38. Qd2 {[%emt 0:00:14]} Rc8 {[%emt 0:00:37]} 39. Qe2 {[%emt 0:00:25]} Qb6 {[%emt 0:00:21]} 40. bxc5 {[%emt 0:00:03]} Rxc5 {[%emt 0:00:05]} 41. Rb1 {[%emt 0:00:02]} Qc6 {[%emt 0:00:12]} 42. Rcb2 {[%emt 0:00:10]} Ra5 {[%emt 0:00:27]} 43. Rb3 {[%emt 0:00:01]} Ne8 {[%emt 0:00:02]} 44. Qd3 {[%emt 0:00:05]} Nd6 {[%emt 0:00:04]} 45. Nd2 {[%emt 0:00:02]} Nc4 {[%emt 0:00:10]} 46. Nf1 {[%emt 0:00:03]} Ne5 {[%emt 0:00:05]} 47. Qd4 {[%emt 0:00:02]} Qd6 {[%emt 0:00:03]} 48. Qd2 {[%emt 0:00:06]} Nc4 {[%emt 0:00:02]} 49. Qd4 {[%emt 0:00:03]} Ne5 {[%emt 0:00:08]} 50. Qd2 {[%emt 0:00:05]} Qc6 {[%emt 0:00:02]} 51. Ng3 {[%emt 0:00:09]} Ra4 {[%emt 0:00:07]} 52. Ne2 {[%emt 0:00:03]} Nc4 {[%emt 0:00:06]} 53. Qc1 {[%emt 0:00:03]} Qe6 {[%emt 0:00:02]} 54. Nd4 {[%emt 0:00:15]} Qxe3+ {[%emt 0:00:02]} 55. Qxe3 {[%emt 0:00:02]} Nxe3 {[%emt 0:00:02]} 56. Nxb5 {[%emt 0:00:04]} Ra2 {[%emt 0:00:04]} 57. R3b2 {[%emt 0:00:02]} Rxb2 {[%emt 0:00:08]} 58. Rxb2 {[%emt 0:00:02]} Nd1 {[%emt 0:00:02]} 59. Rb3 {[%emt 0:00:05]} Kf7 {[%emt 0:00:11]} 60. Kf1 {[%emt 0:00:02]} f4 {[%emt 0:00:08]} 61. Ke2 {[%emt 0:00:05]} Ne3 {[%emt 0:00:04]} 62. g3 {[%emt 0:00:02]} g5 {[%emt 0:00:01]} 63. h4 {[%emt 0:00:05]} gxh4 {[%emt 0:00:11]} 64. gxh4 {[%emt 0:00:19]} Nf5 {[%emt 0:00:02]} 65. h5 {[%emt 0:00:08]} Ng3+ {[%emt 0:00:01]} 66. Kd3 {[%emt 0:00:01]} Nxh5 {[%emt 0:00:02]} 67. Nd4 {[%emt 0:00:02]} Rc7 {[%emt 0:00:06]} 68. Rb5 {[%emt 0:00:03]} Nf6 {[%emt 0:00:02]} 69. Rb6 {[%emt 0:00:12]} Re7 {[%emt 0:00:03]} 70. Nf5 {[%emt 0:00:04]} Rc7 {[%emt 0:00:08]} 71. Kd4 {[%emt 0:00:09]} g6 {[%emt 0:00:15]} 72. Nd6+ {[%emt 0:00:04]} Ke7 {[%emt 0:00:03]} 73. Nb5 {[%emt 0:00:03]} Rc4+ {[%emt 0:00:04]} 74. Ke5 {[%emt 0:00:05]} Nd7+ {[%emt 0:00:03]} 0-1

[Event "European Online Club-ch-D 2021"]
[Site "Online"]
[Date "2021.03.27"]
[Round "4.4"]
[White "Muminova, Nafisa"]
[Black "Erdogmus, Yagiz Kaan"]
[Result "0-1"]
[ECO "D00"]
[WhiteElo "2274"]
[BlackElo "1955"]
[Annotator "NA"]
[PlyCount "50"]
[EventDate "2021.03.27"]
[EventType "team-tourn"]
[EventCountry "NET"]
[SourceTitle "playchess.com"]
[Source "ChessBase"]
[SourceQuality "1"]
[TimeControl "900+5"]

1. d4 {[%emt 0:00:00]} Nf6 {[%emt 0:00:04]} 2. Nc3 {[%emt 0:00:07]} d5 {[%emt 0:00:03]} 3. Bf4 {[%emt 0:00:03]} g6 {[%emt 0:00:10]} 4. Qd2 {[%emt 0:00:10]} Bg7 {[%emt 0:00:05]} 5. f3 {[%emt 0:00:03]} O-O {[%emt 0:00:05]} 6. O-O-O {[%emt 0:00:05]} c5 {[%emt 0:00:09]} 7. dxc5 {[%emt 0:00:19]} Qa5 {[%emt 0:00:12]} 8. Kb1 {[%emt 0:01:52]} Rd8 {[%emt 0:01:28]} 9. e4 {[%emt 0:00:07]} Qxc5 {[%emt 0:01:25]} 10. exd5 {[%emt 0:00:08]} Bf5 {[%emt 0:00:09]} 11. g4 {[%emt 0:00:12]} Nxd5 {[%emt 0:00:49]} 12. Qxd5 {[%emt 0:02:01]} Rxd5 {[%emt 0:01:16]} 13. Rxd5 {[%emt 0:00:05]} Qb6 {[%emt 0:01:13]} 14. Na4 {[%emt 0:00:14]} Bxc2+ {[%emt 0:00:41]} 15. Kxc2 {[%emt 0:00:51]} Qc6+ {[%emt 0:00:03]} 16. Nc3 {[%emt 0:00:03]} Bxc3 {[%emt 0:00:02]} 17. Rd8+ {[%emt 0:00:31]} Kg7 {[%emt 0:00:02]} 18. bxc3 {[%emt 0:00:16]} Qa4+ {[%emt 0:00:03]} 19. Kb2 {[%emt 0:00:01]} Qxf4 {[%emt 0:00:02]} 20. Be2 {[%emt 0:00:40]} Qc7 {[%emt 0:00:15]} 21. Rd4 {[%emt 0:00:26]} Nc6 {[%emt 0:00:03]} 22. Re4 {[%emt 0:00:07]} Rd8 {[%emt 0:00:05]} 23. Nh3 {[%emt 0:00:13]} Rd2+ {[%emt 0:00:03]} 24. Kc1 {[%emt 0:00:04]} Rxa2 {[%emt 0:00:06]} 25. Nf4 {[%emt 0:00:10]} Ra1+ {[%emt 0:00:04]} 0-1

[Event "European Online Club-ch-D 2021"]
[Site "Online"]
[Date "2021.03.27"]
[Round "4.5"]
[White "Reimanis, Ritvars"]
[Black "Straka, Vojtech"]
[Result "1/2-1/2"]
[ECO "D45"]
[WhiteElo "2412"]
[BlackElo "2417"]
[Annotator "NA"]
[PlyCount "63"]
[EventDate "2021.03.27"]
[EventType "team-tourn"]
[EventCountry "NET"]
[SourceTitle "playchess.com"]
[Source "ChessBase"]
[SourceQuality "1"]
[TimeControl "900+5"]

1. d4 {[%emt 0:00:00]} d5 {[%emt 0:00:03]} 2. c4 {[%emt 0:00:02]} c6 {[%emt 0:00:02]} 3. Nf3 {[%emt 0:00:01]} Nf6 {[%emt 0:00:02]} 4. e3 {[%emt 0:00:02]} e6 {[%emt 0:00:03]} 5. Nc3 {[%emt 0:00:02]} Nbd7 {[%emt 0:00:03]} 6. Bd2 {[%emt 0:00:02]} Bd6 {[%emt 0:01:43]} 7. Qc2 {[%emt 0:00:05]} O-O {[%emt 0:02:15]} 8. Bd3 {[%emt 0:00:04]} Re8 {[%emt 0:02:43]} 9. O-O-O {[%emt 0:01:42]} e5 {[%emt 0:00:38]} 10. cxd5 {[%emt 0:00:48]} cxd5 {[%emt 0:00:22]} 11. dxe5 {[%emt 0:00:06]} Nxe5 {[%emt 0:00:03]} 12. Nxe5 {[%emt 0:00:03]} Bxe5 {[%emt 0:00:02]} 13. Kb1 {[%emt 0:00:03]} Rb8 {[%emt 0:01:25]} 14. f4 {[%emt 0:01:21]} Bd6 {[%emt 0:00:24]} 15. Nb5 {[%emt 0:00:05]} Ne4 {[%emt 0:00:58]} 16. Nxd6 {[%emt 0:01:38]} Qxd6 {[%emt 0:00:07]} 17. Ba5 {[%emt 0:02:46]} Qe7 {[%emt 0:02:32]} 18. Bc7 {[%emt 0:02:37]} Bg4 {[%emt 0:00:15]} 19. Bxb8 {[%emt 0:00:53]} Bxd1 {[%emt 0:00:02]} 20. Rxd1 {[%emt 0:00:03]} Rxb8 {[%emt 0:00:02]} 21. Bxe4 {[%emt 0:00:08]} dxe4 {[%emt 0:00:06]} 22. Rd4 {[%emt 0:00:08]} Re8 {[%emt 0:00:05]} 23. g3 {[%emt 0:00:38]} h6 {[%emt 0:00:06]} 24. Qa4 {[%emt 0:00:17]} a6 {[%emt 0:01:01]} 25. Rd7 {[%emt 0:02:46]} Qc5 {[%emt 0:00:03]} 26. Qb3 {[%emt 0:00:02]} Re7 {[%emt 0:00:20]} 27. Rd5 {[%emt 0:00:11]} Qc6 {[%emt 0:00:12]} 28. a3 {[%emt 0:00:07]} b5 {[%emt 0:00:14]} 29. Rd4 {[%emt 0:00:11]} Rc7 {[%emt 0:00:16]} 30. Ka2 {[%emt 0:00:05]} Kh7 {[%emt 0:00:19]} 31. Qb4 {[%emt 0:00:07]} f5 {[%emt 0:00:20]} 32. Qd6 {[%emt 0:00:10]} 1/2-1/2